[Event "Grandmaster Tournament Rapid"]
[Site "Biel/Bienne, Switzerland"]
[Date "2019.07.21"]
[Round "4.4"]
[White "Vidit, Santosh"]
[Black "Georgiadis, Nico"]
[Result "1-0"]
[ECO "E16"]
[WhiteElo "2703"]
[BlackElo "2514"]
[PlyCount "105"]
[EventDate "2019.??.??"]
[EventType "rapid"]
[TimeControl "15+5"]
[WhiteClock "0:00:24"]
[BlackClock "0:00:21"]

1. d4 {[%emt 0:00:00]} Nf6 {[%emt 0:00:00]} 2. c4 {[%emt 0:00:00]} e6 {[%emt 0:
00:00]} 3. g3 {[%emt 0:00:00]} d5 {[%emt 0:00:00]} 4. Bg2 {[%emt 0:00:00]} Bb4+
{[%emt 0:00:00]} 5. Nd2 {[%emt 0:00:00]} O-O {[%emt 0:00:00]} 6. Ngf3 {[%emt 0:
00:00]} b6 {[%emt 0:00:00]} 7. O-O {[%emt 0:00:00]} Bb7 {[%emt 0:00:00]} 8. Ne5
{[%emt 0:00:00]} Be7 {[%emt 0:00:00]} 9. Qc2 {[%emt 0:00:00]} c5 {[%emt 0:00:
00]} 10. dxc5 {[%emt 0:00:00]} Qc7 {[%emt 0:00:00]} 11. Ndf3 {[%emt 0:00:00]}
bxc5 {[%emt 0:00:00]} 12. cxd5 {[%emt 0:00:00]} exd5 {[%emt 0:00:00]} 13. Bf4 {
[%emt 0:00:00]} Qb6 {[%emt 0:00:00]} 14. Bg5 {[%emt 0:00:00]} Rd8 {[%emt 0:00:
00]} 15. Rac1 {[%emt 0:00:00]} Na6 {[%emt 0:00:00]} 16. Ng4 {[%emt 0:00:00]}
Nb4 {[%emt 0:00:00]} 17. Qb1 {[%emt 0:00:00]} Rac8 {[%emt 0:00:00]} 18. a3 {
[%emt 0:00:00]} Na6 {[%emt 0:00:00]} 19. Qf5 {[%emt 0:00:00]} Qe6 {[%emt 0:00:
00]} 20. Qxe6 {[%emt 0:00:00]} fxe6 {[%emt 0:00:00]} 21. Nge5 {[%emt 0:00:00]}
d4 {[%emt 0:00:00]} 22. Nc4 {[%emt 0:00:00]} Bd5 {[%emt 0:00:00]} 23. Nfe5 {
[%emt 0:00:00]} Nb8 {[%emt 0:00:39]} 24. e4 {[%emt 0:00:00]} Bb7 {[%emt 0:00:
35]} 25. Bh3 {[%emt 0:00:00]} Bxe4 {[%emt 0:00:31]} 26. Bxe6+ {[%emt 0:00:00]}
Kf8 {[%emt 0:00:03]} 27. Bxc8 Rxc8 {[%emt 0:00:01]} 28. Rfe1 {[%emt 0:00:00]}
Bd5 {[%emt 0:00:06]} 29. Nd3 {[%emt 0:00:00]} Nbd7 {[%emt 0:00:10]} 30. Nf4 {
[%emt 0:00:00]} Bxc4 {[%emt 0:00:09]} 31. Rxc4 {[%emt 0:00:00]} Nb6 {[%emt 0:
00:01]} 32. Rc2 {[%emt 0:00:06]} Kf7 {[%emt 0:00:01]} 33. b3 {[%emt 0:00:16]}
a5 {[%emt 0:00:03]} 34. a4 {[%emt 0:00:06]} h6 {[%emt 0:00:16]} 35. Bxf6 {
[%emt 0:00:01]} Bxf6 {[%emt 0:00:02]} 36. Kg2 {[%emt 0:00:48]} c4 {[%emt 0:00:
24]} 37. bxc4 {[%emt 0:00:04]} Nxa4 {[%emt 0:00:01]} 38. Nd3 {[%emt 0:00:24]}
Nc3 {[%emt 0:00:06]} 39. c5 {[%emt 0:00:52]} a4 {[%emt 0:00:00]} 40. Ra1 {
[%emt 0:00:03]} Ke6 {[%emt 0:00:07]} 41. Rb2 {[%emt 0:00:07]} Kd5 {[%emt 0:00:
07]} 42. Rb7 {[%emt 0:00:16]} Ra8 {[%emt 0:00:07]} 43. Rb4 {[%emt 0:00:11]} a3
{[%emt 0:00:03]} 44. Kf1 {[%emt 0:00:12]} Ke4 {[%emt 0:00:15]} 45. Nc1 {
[%emt 0:00:08]} Kd5 {[%emt 0:00:07]} 46. Nd3 {[%emt 0:00:14]} Ke4 {[%emt 0:00:
01]} 47. Nf4 {[%emt 0:00:05]} a2 {[%emt 0:00:02]} 48. c6 {[%emt 0:00:05]} Rc8 {
[%emt 0:00:03]} 49. Ne2 {[%emt 0:00:05]} Kd3 {[%emt 0:00:09]} 50. Nc1+ {
[%emt 0:00:07]} Kd2 {[%emt 0:00:03]} 51. Nxa2 {[%emt 0:00:03]} Ra8 {[%emt 0:00:
01]} 52. Rb2+ {[%emt 0:00:03]} Kd3 {[%emt 0:00:01]} 53. Nb4+ {[%emt 0:00:00]}
1-0

[Event "Grandmaster Tournament Rapid"]
[Site "Biel/Bienne, Switzerland"]
[Date "2019.07.21"]
[Round "5.1"]
[White "Bogner, Sebastian"]
[Black "Vidit, Santosh"]
[Result "0-1"]
[ECO "A80"]
[WhiteElo "2584"]
[BlackElo "2703"]
[PlyCount "78"]
[EventDate "2019.??.??"]
[EventType "rapid"]
[TimeControl "15+5"]
[WhiteClock "0:01:24"]
[BlackClock "0:00:22"]

1. d4 {[%emt 0:00:00]} f5 {[%emt 0:00:00]} 2. Nf3 {[%emt 0:00:00]} Nf6 {
[%emt 0:00:00]} 3. e3 {[%emt 0:00:00]} g6 {[%emt 0:00:00]} 4. Be2 {[%emt 0:00:
00]} Bg7 {[%emt 0:00:00]} 5. O-O {[%emt 0:00:00]} O-O {[%emt 0:00:00]} 6. b4 {
[%emt 0:00:00]} d6 {[%emt 0:00:00]} 7. Bb2 {[%emt 0:00:00]} Qe8 {[%emt 0:00:00]
} 8. Nbd2 {[%emt 0:00:00]} Nbd7 {[%emt 0:00:00]} 9. c4 {[%emt 0:00:00]} e5 {
[%emt 0:00:00]} 10. dxe5 {[%emt 0:00:00]} Nxe5 {[%emt 0:00:00]} 11. Qb3 {
[%emt 0:00:00]} Kh8 {[%emt 0:00:00]} 12. Nxe5 {[%emt 0:00:00]} dxe5 {[%emt 0:
00:00]} 13. c5 {[%emt 0:00:00]} e4 {[%emt 0:00:00]} 14. Rfd1 {[%emt 0:00:00]}
a5 {[%emt 0:00:00]} 15. b5 {[%emt 0:00:00]} a4 {[%emt 0:00:00]} 16. Qb4 {
[%emt 0:00:00]} Be6 {[%emt 0:00:00]} 17. Nc4 {[%emt 0:00:00]} Qe7 {[%emt 0:00:
00]} 18. a3 {[%emt 0:00:00]} Nd5 {[%emt 0:00:00]} 19. Bxg7+ {[%emt 0:00:00]}
Qxg7 {[%emt 0:00:00]} 20. Qd2 {[%emt 0:00:00]} Nc3 {[%emt 0:00:00]} 21. Rdc1 {
[%emt 0:00:00]} Nxe2+ {[%emt 0:00:00]} 22. Qxe2 {[%emt 0:00:00]} Rfd8 {[%emt 0:
00:00]} 23. b6 {[%emt 0:00:00]} Rd3 {[%emt 0:00:00]} 24. Qc2 {[%emt 0:00:00]}
cxb6 {[%emt 0:00:00]} 25. Nxb6 {[%emt 0:00:00]} Bb3 {[%emt 0:00:00]} 26. Qe2 {
[%emt 0:00:00]} Rad8 {[%emt 0:00:00]} 27. h3 {[%emt 0:00:00]} Qf6 {[%emt 0:00:
00]} 28. Qe1 {[%emt 0:00:00]} Qe6 {[%emt 0:01:07]} 29. Qb4 {[%emt 0:00:00]} f4
{[%emt 0:00:35]} 30. exf4 {[%emt 0:00:00]} e3 {[%emt 0:00:04]} 31. fxe3 {
[%emt 0:00:00]} Qxe3+ {[%emt 0:00:07]} 32. Kh1 {[%emt 0:00:00]} R8d4 {[%emt 0:
00:23]} 33. Qa5 {[%emt 0:00:00]} Qxf4 {[%emt 0:00:16]} 34. Qa8+ {[%emt 0:00:02]
} Rd8 {[%emt 0:00:18]} 35. Qxb7 {[%emt 0:00:02]} Bd1 {[%emt 0:00:09]} 36. Nc4 {
[%emt 0:00:40]} Rxh3+ {[%emt 0:00:05]} 37. gxh3 {[%emt 0:01:17]} Bf3+ {[%emt 0:
00:01]} 38. Qxf3 {[%emt 0:00:01]} Qxf3+ {[%emt 0:00:01]} 39. Kg1 {[%emt 0:00:
04]} Qg3+ {[%emt 0:00:02]} 0-1

[Event "Grandmaster Tournament Rapid"]
[Site "Biel/Bienne, Switzerland"]
[Date "2019.07.21"]
[Round "5.2"]
[White "Georgiadis, Nico"]
[Black "Abdusattorov, Nodirbek"]
[Result "0-1"]
[ECO "E18"]
[WhiteElo "2514"]
[BlackElo "2598"]
[PlyCount "78"]
[EventDate "2019.??.??"]
[EventType "rapid"]
[TimeControl "15+5"]
[WhiteClock "0:00:20"]
[BlackClock "0:02:49"]

1. d4 {[%emt 0:00:00]} Nf6 {[%emt 0:00:00]} 2. c4 {[%emt 0:00:00]} e6 {[%emt 0:
00:00]} 3. Nf3 {[%emt 0:00:00]} b6 {[%emt 0:00:00]} 4. g3 {[%emt 0:00:00]} Bb7
{[%emt 0:00:00]} 5. Bg2 {[%emt 0:00:00]} Be7 {[%emt 0:00:00]} 6. O-O {[%emt 0:
00:00]} O-O {[%emt 0:00:00]} 7. Nc3 {[%emt 0:00:00]} Ne4 {[%emt 0:00:00]} 8.
Bd2 {[%emt 0:00:00]} Bf6 {[%emt 0:00:00]} 9. Rc1 {[%emt 0:00:00]} Nxd2 {
[%emt 0:00:00]} 10. Qxd2 {[%emt 0:00:00]} d6 {[%emt 0:00:00]} 11. e4 {[%emt 0:
00:00]} Nd7 {[%emt 0:00:00]} 12. h4 {[%emt 0:00:00]} g6 {[%emt 0:00:00]} 13.
Rfe1 {[%emt 0:00:00]} Bg7 {[%emt 0:00:00]} 14. d5 {[%emt 0:00:00]} e5 {[%emt 0:
00:00]} 15. b4 {[%emt 0:00:00]} a5 {[%emt 0:00:00]} 16. a3 {[%emt 0:00:00]} Ba6
{[%emt 0:00:00]} 17. Nb5 {[%emt 0:00:00]} Nf6 {[%emt 0:00:00]} 18. Bh3 {
[%emt 0:00:00]} Qe7 {[%emt 0:00:00]} 19. Kg2 {[%emt 0:00:00]} h5 {[%emt 0:00:
00]} 20. Rc2 {[%emt 0:00:00]} Ng4 {[%emt 0:00:00]} 21. Ng5 {[%emt 0:00:00]} Bh6
{[%emt 0:00:00]} 22. Qe2 {[%emt 0:00:00]} axb4 {[%emt 0:00:00]} 23. axb4 {
[%emt 0:00:00]} Bc8 {[%emt 0:00:00]} 24. f3 {[%emt 0:00:00]} Nf6 {[%emt 0:00:
00]} 25. Bxc8 {[%emt 0:00:00]} Rfxc8 {[%emt 0:00:00]} 26. c5 {[%emt 0:00:00]}
bxc5 {[%emt 0:00:00]} 27. bxc5 {[%emt 0:00:02]} dxc5 {[%emt 0:00:00]} 28. Rd1 {
[%emt 0:01:07]} Ne8 {[%emt 0:00:00]} 29. f4 {[%emt 0:01:11]} Nd6 {[%emt 0:00:
00]} 30. Rxc5 {[%emt 0:00:02]} exf4 {[%emt 0:00:00]} 31. gxf4 {[%emt 0:00:11]}
Nf5 {[%emt 0:00:00]} 32. d6 {[%emt 0:00:09]} cxd6 {[%emt 0:00:00]} 33. Rxf5 {
[%emt 0:00:09]} gxf5 {[%emt 0:00:00]} 34. Nxd6 {[%emt 0:00:01]} Rc6 {[%emt 0:
00:00]} 35. Nxf5 {[%emt 0:00:02]} Qb4 {[%emt 0:00:00]} 36. Qxh5 {[%emt 0:00:04]
} Bxg5 {[%emt 0:00:00]} 37. hxg5 {[%emt 0:00:10]} Qxe4+ {[%emt 0:00:03]} 38.
Qf3 {[%emt 0:00:01]} Qxf5 {[%emt 0:00:37]} 39. Qxc6 {[%emt 0:00:01]} Qg4+ {
[%emt 0:00:01]} 0-1

[Event "Grandmaster Tournament Rapid"]
[Site "Biel/Bienne, Switzerland"]
[Date "2019.07.21"]
[Round "5.3"]
[White "Leko, Peter"]
[Black "Maghsoodloo, Parham"]
[Result "1/2-1/2"]
[ECO "A90"]
[WhiteElo "2674"]
[BlackElo "2656"]
[PlyCount "78"]
[EventDate "2019.??.??"]
[EventType "rapid"]
[TimeControl "15+5"]
[WhiteClock "0:00:28"]
[BlackClock "0:00:27"]

1. d4 {[%emt 0:00:00]} f5 {[%emt 0:00:00]} 2. c4 {[%emt 0:00:00]} Nf6 {[%emt 0:
00:00]} 3. g3 {[%emt 0:00:00]} e6 {[%emt 0:00:00]} 4. Bg2 {[%emt 0:00:00]} c6 {
[%emt 0:00:00]} 5. Nd2 {[%emt 0:00:00]} d5 {[%emt 0:00:00]} 6. Nh3 {[%emt 0:00:
00]} Bd6 {[%emt 0:00:00]} 7. Qc2 {[%emt 0:00:00]} O-O {[%emt 0:00:00]} 8. O-O {
[%emt 0:00:00]} Qe7 {[%emt 0:00:00]} 9. Nf3 {[%emt 0:00:00]} Ne4 {[%emt 0:00:
00]} 10. Bf4 {[%emt 0:00:00]} Nd7 {[%emt 0:00:00]} 11. Rac1 {[%emt 0:00:00]} b6
{[%emt 0:00:00]} 12. Bxd6 {[%emt 0:00:00]} Nxd6 {[%emt 0:00:00]} 13. cxd5 {
[%emt 0:00:00]} cxd5 {[%emt 0:00:00]} 14. Nf4 {[%emt 0:00:00]} Bb7 {[%emt 0:00:
00]} 15. Qa4 {[%emt 0:00:00]} Rfc8 {[%emt 0:00:00]} 16. Qa3 {[%emt 0:00:00]}
Kf7 {[%emt 0:00:00]} 17. Nd3 {[%emt 0:00:00]} Kf8 {[%emt 0:00:00]} 18. Nfe5 {
[%emt 0:00:00]} Nxe5 {[%emt 0:00:00]} 19. Nxe5 {[%emt 0:00:00]} Rxc1 {[%emt 0:
00:00]} 20. Rxc1 {[%emt 0:00:00]} Rc8 {[%emt 0:00:00]} 21. Rxc8+ {[%emt 0:00:
00]} Nxc8 {[%emt 0:00:00]} 22. Qc3 {[%emt 0:00:00]} Nd6 {[%emt 0:00:00]} 23. e3
{[%emt 0:00:00]} Ba6 {[%emt 0:00:00]} 24. Bf1 {[%emt 0:00:00]} Bxf1 {[%emt 0:
00:00]} 25. Kxf1 {[%emt 0:00:00]} Qb7 {[%emt 0:00:00]} 26. Kg2 {[%emt 0:00:00]}
Ke8 {[%emt 0:00:00]} 27. h3 {[%emt 0:00:00]} a5 {[%emt 0:00:27]} 28. g4 {
[%emt 0:00:00]} g6 {[%emt 0:00:48]} 29. b3 {[%emt 0:00:15]} Qc8 {[%emt 0:00:28]
} 30. Qxc8+ {[%emt 0:01:39]} Nxc8 {[%emt 0:00:01]} 31. a4 {[%emt 0:00:07]} Nd6
{[%emt 0:00:16]} 32. f3 {[%emt 0:00:02]} g5 {[%emt 0:00:17]} 33. Kg3 {[%emt 0:
00:05]} h6 {[%emt 0:00:12]} 34. Kf2 {[%emt 0:00:26]} Ke7 {[%emt 0:00:08]} 35.
Ke2 {[%emt 0:00:02]} Ne8 {[%emt 0:00:06]} 36. Kd3 {[%emt 0:00:10]} Nf6 {
[%emt 0:00:03]} 37. Nc6+ {[%emt 0:00:14]} Kd6 {[%emt 0:00:14]} 38. Ne5 {
[%emt 0:00:01]} Ke7 {[%emt 0:00:01]} 39. Nc6+ {[%emt 0:00:01]} Kd6 {[%emt 0:00:
02]} 1/2-1/2

[Event "Grandmaster Tournament Rapid"]
[Site "Biel/Bienne, Switzerland"]
[Date "2019.07.21"]
[Round "5.4"]
[White "Shankland, Sam"]
[Black "Cori, Jorge"]
[Result "1/2-1/2"]
[ECO "E11"]
[WhiteElo "2713"]
[BlackElo "2686"]
[PlyCount "79"]
[EventDate "2019.??.??"]
[EventType "rapid"]
[TimeControl "15+5"]
[WhiteClock "0:02:07"]
[BlackClock "0:00:24"]

1. d4 {[%emt 0:00:00]} Nf6 {[%emt 0:00:00]} 2. c4 {[%emt 0:00:00]} e6 {[%emt 0:
00:00]} 3. Nf3 {[%emt 0:00:00]} Bb4+ {[%emt 0:00:00]} 4. Bd2 {[%emt 0:00:00]}
Qe7 {[%emt 0:00:00]} 5. e3 {[%emt 0:00:00]} O-O {[%emt 0:00:00]} 6. Bd3 {
[%emt 0:00:00]} Bxd2+ {[%emt 0:00:00]} 7. Qxd2 {[%emt 0:00:00]} d6 {[%emt 0:00:
00]} 8. Qc3 {[%emt 0:00:00]} Re8 {[%emt 0:00:00]} 9. Nbd2 {[%emt 0:00:00]} e5 {
[%emt 0:00:00]} 10. e4 {[%emt 0:00:00]} exd4 {[%emt 0:00:00]} 11. Nxd4 {
[%emt 0:00:00]} d5 {[%emt 0:00:00]} 12. O-O {[%emt 0:00:00]} c5 {[%emt 0:00:00]
} 13. cxd5 {[%emt 0:00:00]} cxd4 {[%emt 0:00:00]} 14. Qxd4 {[%emt 0:00:00]} Rd8
{[%emt 0:00:00]} 15. Qc3 {[%emt 0:00:00]} Nbd7 {[%emt 0:00:00]} 16. Rfe1 {
[%emt 0:00:00]} Ne5 {[%emt 0:00:00]} 17. Be2 {[%emt 0:00:00]} Bd7 {[%emt 0:00:
00]} 18. Qd4 {[%emt 0:00:00]} a6 {[%emt 0:00:00]} 19. f4 {[%emt 0:00:00]} Ng6 {
[%emt 0:00:00]} 20. d6 {[%emt 0:00:00]} Qe6 {[%emt 0:00:00]} 21. e5 {[%emt 0:
00:00]} Bc6 {[%emt 0:00:00]} 22. h3 {[%emt 0:00:00]} Nh4 {[%emt 0:00:00]} 23.
Bf1 {[%emt 0:00:00]} Nd5 {[%emt 0:00:00]} 24. Qf2 {[%emt 0:00:00]} Qh6 {
[%emt 0:00:00]} 25. g3 {[%emt 0:00:00]} Nf5 {[%emt 0:00:00]} 26. Kh2 {[%emt 0:
00:00]} Nxd6 {[%emt 0:00:49]} 27. exd6 {[%emt 0:00:00]} Qxd6 {[%emt 0:00:01]}
28. Nc4 {[%emt 0:00:00]} Qf8 {[%emt 0:00:12]} 29. Ne5 {[%emt 0:00:00]} Rac8 {
[%emt 0:00:20]} 30. Bc4 {[%emt 0:00:00]} Be8 {[%emt 0:00:23]} 31. Rad1 {
[%emt 0:00:00]} Nf6 {[%emt 0:00:06]} 32. a3 {[%emt 0:00:00]} Rxd1 {[%emt 0:00:
16]} 33. Rxd1 {[%emt 0:00:00]} Qe7 {[%emt 0:00:01]} 34. Qd4 {[%emt 0:00:00]}
Kf8 {[%emt 0:00:04]} 35. Bb3 {[%emt 0:00:04]} Qc5 {[%emt 0:00:11]} 36. Qd6+ {
[%emt 0:00:26]} Qxd6 {[%emt 0:00:02]} 37. Rxd6 {[%emt 0:00:00]} Ke7 {[%emt 0:
00:22]} 38. Rb6 {[%emt 0:00:04]} Rc7 {[%emt 0:00:01]} 39. Rb4 {[%emt 0:00:50]}
b5 {[%emt 0:00:18]} 40. Rd4 {[%emt 0:00:04]} 1/2-1/2

[Event "Grandmaster Tournament Rapid"]
[Site "Biel/Bienne, Switzerland"]
[Date "2019.07.21"]
[Round "6.1"]
[White "Shankland, Sam"]
[Black "Bogner, Sebastian"]
[Result "1/2-1/2"]
[ECO "D15"]
[WhiteElo "2713"]
[BlackElo "2584"]
[PlyCount "63"]
[EventDate "2019.??.??"]
[EventType "rapid"]
[TimeControl "15+5"]
[WhiteClock "0:09:08"]
[BlackClock "0:04:09"]

1. d4 {[%emt 0:00:00]} d5 {[%emt 0:00:00]} 2. c4 {[%emt 0:00:00]} c6 {[%emt 0:
00:00]} 3. Nf3 {[%emt 0:00:00]} Nf6 {[%emt 0:00:00]} 4. Nc3 {[%emt 0:00:00]} a6
{[%emt 0:00:00]} 5. e3 {[%emt 0:00:00]} Bf5 {[%emt 0:00:00]} 6. Ne5 {[%emt 0:
00:00]} Nbd7 {[%emt 0:00:00]} 7. Qb3 {[%emt 0:00:00]} Qc7 {[%emt 0:00:00]} 8.
cxd5 {[%emt 0:00:00]} Nxe5 {[%emt 0:00:00]} 9. dxe5 {[%emt 0:00:00]} Nxd5 {
[%emt 0:00:00]} 10. Nxd5 {[%emt 0:00:00]} cxd5 {[%emt 0:00:00]} 11. Bd2 {
[%emt 0:00:00]} Qxe5 {[%emt 0:00:00]} 12. Rc1 {[%emt 0:00:00]} Bd7 {[%emt 0:00:
00]} 13. Qb6 {[%emt 0:00:00]} Qd6 {[%emt 0:00:00]} 14. Qxb7 {[%emt 0:00:00]}
Rb8 {[%emt 0:00:00]} 15. Qa7 {[%emt 0:00:00]} Rxb2 {[%emt 0:00:00]} 16. Bxa6 {
[%emt 0:00:00]} f6 {[%emt 0:00:00]} 17. a4 {[%emt 0:00:00]} Bxa4 {[%emt 0:00:
00]} 18. Bc3 {[%emt 0:00:00]} Rb3 {[%emt 0:00:00]} 19. Ba5 {[%emt 0:00:00]} Bb5
{[%emt 0:00:00]} 20. Bxb5+ {[%emt 0:00:00]} Rxb5 {[%emt 0:00:00]} 21. O-O {
[%emt 0:00:00]} Kf7 {[%emt 0:00:00]} 22. Bc7 {[%emt 0:00:00]} Qd7 {[%emt 0:00:
00]} 23. Qa4 {[%emt 0:00:00]} Qe8 {[%emt 0:00:00]} 24. Bg3 {[%emt 0:00:00]} Rb7
{[%emt 0:00:00]} 25. Qd4 {[%emt 0:00:00]} Qd7 {[%emt 0:00:00]} 26. Rfd1 {
[%emt 0:00:00]} e6 {[%emt 0:00:00]} 27. e4 {[%emt 0:00:00]} Be7 {[%emt 0:00:00]
} 28. exd5 {[%emt 0:00:00]} Qxd5 {[%emt 0:00:00]} 29. Qxd5 {[%emt 0:00:00]}
exd5 {[%emt 0:00:00]} 30. Rxd5 {[%emt 0:00:00]} Rd8 {[%emt 0:00:00]} 31. Rxd8 {
[%emt 0:00:00]} Bxd8 {[%emt 0:00:00]} 32. h3 {[%emt 0:00:00]} 1/2-1/2

[Event "Grandmaster Tournament Rapid"]
[Site "Biel/Bienne, Switzerland"]
[Date "2019.07.21"]
[Round "6.3"]
[White "Maghsoodloo, Parham"]
[Black "Georgiadis, Nico"]
[Result "0-1"]
[ECO "A13"]
[WhiteElo "2656"]
[BlackElo "2514"]
[PlyCount "112"]
[EventDate "2019.??.??"]
[EventType "rapid"]
[TimeControl "15+5"]
[WhiteClock "0:00:23"]
[BlackClock "0:00:27"]

1. Nf3 {[%emt 0:00:00]} d5 {[%emt 0:00:00]} 2. c4 {[%emt 0:00:00]} e6 {[%emt 0:
00:00]} 3. g3 {[%emt 0:00:00]} Nf6 {[%emt 0:00:00]} 4. Bg2 {[%emt 0:00:00]}
dxc4 {[%emt 0:00:00]} 5. Qa4+ {[%emt 0:00:00]} Nbd7 {[%emt 0:00:00]} 6. Qxc4 {
[%emt 0:00:00]} c5 {[%emt 0:00:00]} 7. O-O {[%emt 0:00:00]} b6 {[%emt 0:00:00]}
8. Rd1 {[%emt 0:00:00]} Bb7 {[%emt 0:00:00]} 9. b3 {[%emt 0:00:00]} Be7 {
[%emt 0:00:00]} 10. Bb2 {[%emt 0:00:00]} O-O {[%emt 0:00:00]} 11. d3 {[%emt 0:
00:00]} a6 {[%emt 0:00:00]} 12. Nbd2 {[%emt 0:00:00]} b5 {[%emt 0:00:00]} 13.
Qc2 {[%emt 0:00:00]} Qb6 {[%emt 0:00:00]} 14. e4 {[%emt 0:00:00]} Rac8 {
[%emt 0:00:00]} 15. h3 {[%emt 0:00:00]} Rfd8 {[%emt 0:00:00]} 16. Rac1 {
[%emt 0:00:00]} h6 {[%emt 0:00:00]} 17. a3 {[%emt 0:00:00]} Nb8 {[%emt 0:00:00]
} 18. Ne5 {[%emt 0:00:00]} Nbd7 {[%emt 0:00:00]} 19. Ndf3 {[%emt 0:00:00]} Nxe5
{[%emt 0:00:00]} 20. Nxe5 {[%emt 0:00:00]} Nd7 {[%emt 0:00:00]} 21. h4 {
[%emt 0:00:00]} Nxe5 {[%emt 0:00:00]} 22. Bxe5 {[%emt 0:00:00]} Rd7 {[%emt 0:
00:00]} 23. Qe2 {[%emt 0:00:00]} Rcd8 {[%emt 0:00:00]} 24. Bb2 {[%emt 0:00:00]}
Bf8 {[%emt 0:00:00]} 25. Qe3 {[%emt 0:00:00]} b4 {[%emt 0:00:00]} 26. axb4 {
[%emt 0:00:00]} Qxb4 {[%emt 0:00:00]} 27. Rb1 {[%emt 0:00:00]} a5 {[%emt 0:00:
00]} 28. Bf3 {[%emt 0:00:00]} Ba6 {[%emt 0:00:00]} 29. Be2 {[%emt 0:00:00]} Rb8
{[%emt 0:00:00]} 30. Be5 {[%emt 0:00:00]} Bd6 {[%emt 0:00:00]} 31. Bb2 {
[%emt 0:00:00]} Bf8 {[%emt 0:00:00]} 32. Rdc1 {[%emt 0:00:00]} Rbd8 {[%emt 0:
00:00]} 33. Bc3 {[%emt 0:00:00]} Qb6 {[%emt 0:00:19]} 34. Rd1 {[%emt 0:00:00]}
Rb8 {[%emt 0:00:11]} 35. Qc1 {[%emt 0:00:00]} Qd8 {[%emt 0:00:23]} 36. Qd2 {
[%emt 0:00:00]} a4 {[%emt 0:00:20]} 37. Ba5 {[%emt 0:01:27]} Qe8 {[%emt 0:00:
19]} 38. bxa4 {[%emt 0:00:13]} Rxb1 {[%emt 0:00:01]} 39. Rxb1 {[%emt 0:00:01]}
Bxd3 {[%emt 0:00:01]} 40. Bxd3 {[%emt 0:00:19]} c4 {[%emt 0:00:01]} 41. Qf4 {
[%emt 0:00:02]} e5 {[%emt 0:00:41]} 42. Qc1 {[%emt 0:00:20]} cxd3 {[%emt 0:00:
06]} 43. Bd2 {[%emt 0:00:11]} Qa8 {[%emt 0:00:08]} 44. a5 {[%emt 0:00:00]} Kh7
{[%emt 0:00:37]} 45. Qc4 {[%emt 0:00:21]} Qa7 {[%emt 0:00:05]} 46. Rb6 {
[%emt 0:00:32]} Rc7 {[%emt 0:00:12]} 47. Rc6 {[%emt 0:00:32]} Rxc6 {[%emt 0:00:
10]} 48. Qxc6 {[%emt 0:00:00]} Bc5 {[%emt 0:00:01]} 49. Kg2 {[%emt 0:00:12]}
Bxf2 {[%emt 0:00:01]} 50. Qd5 {[%emt 0:00:03]} Bg1 {[%emt 0:00:30]} 51. Kh3 {
[%emt 0:00:10]} Qf2 {[%emt 0:00:05]} 52. h5 {[%emt 0:00:05]} Qxd2 {[%emt 0:00:
08]} 53. Qxf7 {[%emt 0:00:01]} Qh2+ {[%emt 0:00:02]} 54. Kg4 {[%emt 0:00:01]}
Qe2+ {[%emt 0:00:01]} 55. Kf5 {[%emt 0:00:01]} Qf3+ {[%emt 0:00:01]} 56. Ke6 {
[%emt 0:00:01]} Qxf7+ {[%emt 0:00:02]} 0-1

[Event "Grandmaster Tournament Rapid"]
[Site "Biel/Bienne, Switzerland"]
[Date "2019.07.21"]
[Round "6.4"]
[White "Abdusattorov, Nodirbek"]
[Black "Vidit, Santosh"]
[Result "0-1"]
[ECO "C81"]
[WhiteElo "2598"]
[BlackElo "2703"]
[PlyCount "132"]
[EventDate "2019.??.??"]
[EventType "rapid"]
[TimeControl "15+5"]
[WhiteClock "0:00:25"]
[BlackClock "0:00:27"]

1. e4 {[%emt 0:00:00]} e5 {[%emt 0:00:00]} 2. Nf3 {[%emt 0:00:00]} Nc6 {
[%emt 0:00:00]} 3. Bb5 {[%emt 0:00:00]} a6 {[%emt 0:00:00]} 4. Ba4 {[%emt 0:00:
00]} Nf6 {[%emt 0:00:00]} 5. O-O {[%emt 0:00:00]} Nxe4 {[%emt 0:00:00]} 6. d4 {
[%emt 0:00:00]} b5 {[%emt 0:00:00]} 7. Bb3 {[%emt 0:00:00]} d5 {[%emt 0:00:00]}
8. dxe5 {[%emt 0:00:00]} Be6 {[%emt 0:00:00]} 9. Qe2 {[%emt 0:00:00]} Be7 {
[%emt 0:00:00]} 10. Rd1 {[%emt 0:00:00]} O-O {[%emt 0:00:00]} 11. c3 {[%emt 0:
00:00]} Qd7 {[%emt 0:00:00]} 12. Bc2 {[%emt 0:00:00]} f5 {[%emt 0:00:00]} 13.
Nbd2 {[%emt 0:00:00]} Rad8 {[%emt 0:00:00]} 14. Nb3 {[%emt 0:00:00]} Bf7 {
[%emt 0:00:00]} 15. Nbd4 {[%emt 0:00:00]} Bh5 {[%emt 0:00:00]} 16. Nxc6 {
[%emt 0:00:00]} Qxc6 {[%emt 0:00:00]} 17. Nd4 {[%emt 0:00:00]} Bxe2 {[%emt 0:
00:00]} 18. Nxc6 {[%emt 0:00:00]} Bxd1 {[%emt 0:00:00]} 19. Nxe7+ {[%emt 0:00:
00]} Kf7 {[%emt 0:00:00]} 20. Bxd1 {[%emt 0:00:00]} Kxe7 {[%emt 0:00:00]} 21.
f3 {[%emt 0:00:00]} Nc5 {[%emt 0:00:00]} 22. Bg5+ {[%emt 0:00:00]} Ke6 {
[%emt 0:00:00]} 23. Bxd8 {[%emt 0:00:00]} Rxd8 {[%emt 0:00:00]} 24. b4 {
[%emt 0:00:00]} Nd3 {[%emt 0:00:00]} 25. a4 {[%emt 0:00:00]} Nxe5 {[%emt 0:00:
00]} 26. axb5 {[%emt 0:00:00]} axb5 {[%emt 0:00:00]} 27. Bc2 {[%emt 0:00:00]}
Rd6 {[%emt 0:00:00]} 28. f4 {[%emt 0:00:00]} Nc4 {[%emt 0:00:00]} 29. g4 {
[%emt 0:00:00]} fxg4 {[%emt 0:00:00]} 30. Bxh7 {[%emt 0:00:00]} Kf6 {[%emt 0:
00:00]} 31. Bd3 {[%emt 0:00:46]} Rc6 {[%emt 0:00:00]} 32. Re1 {[%emt 0:01:18]}
Nd2 {[%emt 0:00:00]} 33. Re8 {[%emt 0:00:29]} Rxc3 {[%emt 0:00:00]} 34. Bxb5 {
[%emt 0:00:01]} Nf3+ {[%emt 0:00:52]} 35. Kg2 {[%emt 0:00:02]} Nh4+ {[%emt 0:
00:20]} 36. Kg1 {[%emt 0:00:06]} Ng6 {[%emt 0:01:03]} 37. Bd7 {[%emt 0:00:08]}
Nxf4 {[%emt 0:00:03]} 38. Bxg4 {[%emt 0:00:09]} Rc1+ {[%emt 0:00:45]} 39. Kf2 {
[%emt 0:00:01]} Nd3+ {[%emt 0:00:04]} 40. Kg2 {[%emt 0:00:01]} Nxb4 {[%emt 0:
00:05]} 41. Re6+ {[%emt 0:00:08]} Kf7 {[%emt 0:00:06]} 42. Re2 {[%emt 0:00:25]}
c5 {[%emt 0:00:08]} 43. Kg3 {[%emt 0:00:07]} g5 {[%emt 0:00:13]} 44. Re5 {
[%emt 0:00:05]} Rc3+ {[%emt 0:00:06]} 45. Kg2 {[%emt 0:00:04]} Kf6 {[%emt 0:00:
02]} 46. Re6+ {[%emt 0:00:01]} Kf7 {[%emt 0:00:03]} 47. Re5 {[%emt 0:00:00]} c4
{[%emt 0:00:07]} 48. Rxg5 {[%emt 0:00:05]} Rd3 {[%emt 0:00:05]} 49. Rf5+ {
[%emt 0:00:08]} Kg7 {[%emt 0:00:04]} 50. Rf2 {[%emt 0:00:04]} c3 {[%emt 0:00:
04]} 51. Bf5 {[%emt 0:00:02]} Re3 {[%emt 0:00:04]} 52. Rf4 {[%emt 0:00:15]} c2
{[%emt 0:00:05]} 53. Bxc2 {[%emt 0:00:07]} Nxc2 {[%emt 0:00:01]} 54. Kf2 {
[%emt 0:00:02]} Re5 {[%emt 0:00:05]} 55. Ra4 {[%emt 0:00:06]} Ne3 {[%emt 0:00:
04]} 56. Kf3 {[%emt 0:00:02]} Nc4 {[%emt 0:00:05]} 57. Ra6 {[%emt 0:00:03]} Kf7
{[%emt 0:00:05]} 58. h4 {[%emt 0:00:01]} Re6 {[%emt 0:00:03]} 59. Ra8 {[%emt 0:
00:05]} Re4 {[%emt 0:00:08]} 60. h5 {[%emt 0:00:14]} Rh4 {[%emt 0:00:05]} 61.
Rh8 {[%emt 0:00:08]} Kg7 {[%emt 0:00:02]} 62. Rd8 {[%emt 0:00:02]} Rxh5 {
[%emt 0:00:04]} 63. Kg4 {[%emt 0:00:02]} Re5 {[%emt 0:00:05]} 64. Kf4 {[%emt 0:
00:02]} Re4+ {[%emt 0:00:06]} 65. Kf5 {[%emt 0:00:01]} Ne3+ {[%emt 0:00:05]}
66. Kg5 {[%emt 0:00:00]} Kf7 {[%emt 0:00:01]} 0-1